bitfinex-derivatives/quotes_ETHF0:USTF0_20251012
["timestamp","ask_amount","ask_price","bid_price","bid_amount"]
[1760300453775,0.43507,4134.4,4134.2,5.36570286]
[1760300454080,0.79997,4134.4,4134.2,5.36570286]
[1760300454374,0.79997,4134.4,4134.3,2.15547078]
[1760300454971,0.3649,4134.4,4134.2,3.21023208]
[1760300455171,0.93355,4134.5,4134.2,3.21023208]
[1760300455378,0.43506,4134.4,4134.2,3.21023208]
[1760300455778,0.3649,4134.3,4134.2,3.21023208]
[1760300457477,0.3649,4134.3,4134.2,6.24631246]
[1760300458276,0.3649,4134.3,4134.2,3.21023208]
[1760300459373,0.1336,4134.5,4134.2,3.21023208]
[1760300459579,0.79997,4134.4,4134.2,3.21023208]
[1760300459876,0.3649,4134.3,4134.2,3.21023208]
[1760300460573,0.00185614,4134.9,4134.2,3.21023208]
[1760300460773,0.00185614,4134.9,4134.8,7.99123968]
[1760300460973,0.36675614,4134.9,4134.8,7.99123968]
[1760300461477,0.00185614,4134.9,4134.8,7.99123968]
[1760300462570,0.1359,4135.5,4134.8,7.99123968]
[1760300462776,0.1359,4135.5,4134.4,4.29858191]
[1760300462777,0.3282,4136.3,4135.4,12.11717955]
[1760300462976,0.3282,4136.3,4136.2,3.2078]
[1760300463177,0.3282,4136.3,4136.2,6.23955166]
[1760300463579,0.3282,4136.3,4136.2,3.2078]
[1760300463782,0.33066446,4136.3,4136.2,3.2078]
[1760300464582,0.33066446,4136.3,4136.0,3.03175166]
[1760300464583,0.3282,4135.9,4135.8,3.03175166]
[1760300464773,0.43491,4135.8,4135.6,6.23955166]
[1760300464973,0.3282,4135.7,4135.6,6.23955166]
[1760300465175,0.3282,4135.7,4135.6,3.2078]
[1760300465785,0.76314,4135.6,4135.5,3.03175166]
[1760300466088,0.4686,4135.5,4135.4,2.16438785]
[1760300466479,0.4686,4135.5,4135.1,3.2078]
[1760300466480,0.3282,4135.2,4135.1,3.2078]
[1760300469886,0.43499,4135.1,4135.0,3.03175166]
[1760300470187,0.43499,4135.1,4134.5,3.2078]
[1760300470188,0.76322,4134.8,4134.7,3.03175166]
[1760300472086,0.1404,4135.5,4134.5,7.99123968]
[1760300472284,0.76317,4135.3,4135.2,2.16490589]
[1760300473886,0.76318,4135.2,4135.1,2.16490589]
[1760300474092,0.76319,4135.1,4135.0,2.16490589]
[1760300474594,3.97099,4135.1,4135.0,1.65681589]
[1760300474890,0.76323,4134.7,4134.6,3.03086824]
[1760300475084,0.76327,4134.3,4134.2,0.00243208]
[1760300475298,0.5755,4134.0,4133.9,2.38922824]
[1760300475484,0.3282,4133.9,4133.8,3.2078]
[1760300476290,0.3282,4133.9,4133.8,3.21023279]
[1760300477600,0.1404,4135.0,4134.8,0.43502]
[1760300477793,0.57535,4135.5,4134.9,3.2078]
[1760300477992,0.4686,4135.0,4134.9,3.2078]
[1760300478683,0.43504,4134.7,4134.5,4.29858191]
[1760300478888,0.3282,4134.6,4134.5,4.29858191]
[1760300479083,0.1404,4134.5,4134.4,3.2078]
[1760300479297,0.4686,4134.5,4134.4,3.2078]
[1760300479696,0.1404,4134.5,4134.4,3.2078]
[1760300479898,0.4686,4134.5,4134.4,3.2078]
[1760300480404,0.43503,4134.8,4134.4,3.2078]
[1760300480792,0.76323,4134.7,4134.4,3.2078]
[1760300481290,0.3282,4134.7,4134.4,3.2078]
[1760300481799,0.90365,4134.5,4134.4,3.2078]
[1760300482591,0.4686,4134.5,4134.4,3.2078]
[1760300483004,0.4686,4134.5,4134.4,6.23826102]
[1760300483701,0.1404,4134.5,4134.4,6.23826102]
[1760300483901,0.1404,4134.5,4134.4,3.2078]
[1760300485007,0.4686,4134.5,4134.4,3.2078]
[1760300487013,0.90365,4134.5,4134.4,3.2078]
[1760300487515,0.4686,4135.0,4134.4,3.2078]
[1760300487714,0.4686,4135.0,4134.9,3.2078]
[1760300488815,0.7123,4135.0,4134.9,3.2078]
[1760300489015,0.7123,4135.0,4134.9,6.2368421]
[1760300489215,0.4686,4135.0,4134.9,6.2368421]
[1760300490412,3.64272,4135.8,4134.9,6.6718521]
[1760300490716,3.64272,4135.8,4134.9,6.2368421]
[1760300490717,0.7123,4135.0,4134.9,6.2368421]
[1760300490920,0.7123,4135.0,4134.9,3.2078]
[1760300492712,0.3637,4136.2,4134.9,8.64612052]
[1760300492913,0.00246446,4136.3,4134.9,8.64612052]
[1760300492914,0.00246446,4136.3,4135.8,6.2368421]
[1760300493109,0.00246446,4136.3,4136.1,0.43487]
[1760300493514,3.2078,4136.8,4136.5,0.43484]
[1760300493815,3.5715,4136.8,4136.4,3.46146597]
[1760300494012,3.2078,4136.8,4136.4,3.46146597]
[1760300494219,0.142,4136.5,4136.4,3.02661597]
[1760300494414,0.50847546,4136.5,4136.4,3.02661597]
[1760300494917,0.14477546,4136.5,4136.2,3.02661597]
[1760300495417,0.3637,4136.3,4136.2,3.02661597]
[1760300495921,0.3637,4136.3,4135.8,3.2078]
[1760300495922,0.5057,4136.0,4135.9,3.02661597]
[1760300496123,0.4349,4135.9,4135.8,3.2078]
[1760300496417,0.7986,4135.9,4135.8,3.2078]
[1760300497914,0.94065,4135.5,4135.4,3.02661597]
[1760300498117,0.43496,4135.4,4135.1,6.23441597]
[1760300498316,0.3637,4135.3,4135.1,6.23441597]
[1760300498517,0.3637,4135.2,4135.1,6.23441597]
[1760300498916,0.3637,4135.2,4135.1,3.2078]
[1760300499120,0.3637,4135.2,4135.0,3.02661597]
[1760300499121,0.79869,4135.1,4135.0,3.02661597]
[1760300499423,0.3637,4134.4,4134.3,3.02661597]
[1760300499817,0.57705,4134.5,4134.1,3.2078]
[1760300499818,0.3637,4134.2,4134.1,3.02661597]
[1760300500121,0.142,4134.0,4133.8,0.00243279]
[1760300500323,0.3637,4133.9,4133.8,0.00243279]
[1760300501121,0.79881,4133.9,4133.8,0.00243279]
[1760300506719,3.2078,4134.2,4133.8,0.00243279]
[1760300506720,0.3335,4134.1,4133.8,0.00243279]
[1760300506919,0.1444,4134.0,4133.9,0.43511]
[1760300507116,0.4779,4134.0,4133.9,0.43511]
[1760300507318,0.57951,4134.0,4133.8,0.00243279]
[1760300507517,0.3335,4133.9,4133.8,0.00243279]
[1760300514424,3.48549501,4133.9,4133.8,2.79e-06]
[1760300518630,8.92381553,4133.9,4133.8,2.79e-06]
[1760300519623,0.57971,4132.0,4131.9,3.2078]
[1760300519823,0.91321,4132.0,4131.9,3.2078]
[1760300520034,0.76888,4131.4,4131.3,3.2078]
[1760300520420,0.76894,4130.8,4130.7,3.2078]
[1760300520628,0.77096734,4130.8,4130.7,3.20976308]
[1760300521725,0.77096734,4130.8,4130.7,0.00196308]
[1760300522433,0.76899,4130.3,4130.2,3.2078]
[1760300523225,0.76899,4130.3,4130.2,3.2107706]
[1760300523931,0.3335,4130.3,4130.2,3.2107706]
[1760300524233,0.1444,4130.5,4130.2,3.2107706]
[1760300524234,0.3314,4130.4,4130.2,3.2107706]
[1760300524730,0.4758,4130.5,4130.2,3.2107706]
[1760300524926,0.4758,4130.5,4130.2,3.6462706]
[1760300525126,0.3314,4130.4,4130.2,3.2107706]
[1760300525530,0.3314,4130.3,4130.2,3.2107706]
[1760300525733,0.00202734,4130.8,4130.2,3.2107706]
[1760300526032,0.00202734,4130.8,4130.7,3.2078]
[1760300526733,0.43536,4131.6,4130.7,3.2078]
[1760300527029,0.3314,4132.2,4131.8,0.43533]
[1760300527229,0.3314,4132.2,4132.0,3.2078]
[1760300527631,0.33449825,4132.2,4132.0,3.2078]
[1760300528027,0.3314,4132.1,4132.0,3.2078]
[1760300529439,0.00309825,4132.2,4132.0,3.2078]
[1760300529827,0.00309825,4132.2,4132.0,3.64311]
[1760300530325,0.7667,4132.1,4132.0,3.2078]
[1760300531828,0.43541,4131.2,4130.9,3.2078]
[1760300532033,0.1358,4131.0,4130.9,3.2078]
[1760300532339,0.4672,4131.5,4131.1,0.43541]
[1760300532526,0.4672,4131.5,4131.4,3.2078]
[1760300537737,0.1358,4132.0,4131.4,3.2078]
[1760300537926,0.1358,4132.0,4131.9,3.2078]
[1760300538131,0.4672,4132.0,4131.9,3.2078]
[1760300541131,0.00309825,4132.2,4132.0,0.43531]
[1760300542634,0.00309825,4132.2,4131.9,3.64312]
[1760300542828,0.00309825,4132.2,4132.0,0.43531]
[1760300543235,0.00309825,4132.2,4131.9,3.2078]
[1760300543236,0.00309825,4132.2,4131.9,3.64312]
[1760300543432,0.00309825,4132.2,4132.0,0.43531]
[1760300544037,0.33449825,4132.2,4132.0,0.43531]
[1760300544337,0.4672,4132.0,4131.9,3.2078]
[1760300546138,0.1358,4132.0,4131.9,3.64312]
[1760300546329,0.00309825,4132.2,4131.9,3.2078]
[1760300546533,0.00309825,4132.2,4131.9,3.64312]
[1760300546835,0.00309825,4132.2,4132.0,0.43531]
[1760300547032,0.33449825,4132.2,4131.9,3.64312]
[1760300547334,0.33449825,4132.2,4132.0,0.43531]
[1760300547536,0.33449825,4132.2,4131.9,3.2078]
[1760300547537,0.4672,4132.0,4131.9,3.2078]
[1760300548333,0.4672,4132.0,4131.9,3.64312]
[1760300548533,0.00309825,4132.2,4132.0,0.43531]
[1760300548731,0.00309825,4132.2,4131.9,3.2078]
[1760300548935,0.00309825,4132.2,4132.0,0.43531]
[1760300549134,0.00309825,4132.2,4131.9,3.2078]
[1760300549333,0.00309825,4132.2,4132.1,0.4353]
[1760300549841,0.43523,4132.8,4131.9,8.00179404]
[1760300550140,0.43523,4132.8,4132.6,3.2078]
[1760300550438,4.29567,4133.6,4132.6,3.2078]
[1760300550439,0.3314,4133.3,4132.6,3.2078]
[1760300550737,0.00260224,4133.3,4133.2,3.2078]
[1760300550945,0.3314,4134.4,4133.6,0.43514]
[1760300551138,0.3314,4134.4,4133.7,3.2078]
[1760300551336,0.1358,4134.0,4133.7,3.2078]
[1760300551536,0.3314,4134.4,4133.8,0.43512]
[1760300551838,0.1358,4134.5,4134.2,3.2078]
[1760300552138,0.00240258,4134.4,4134.2,3.2078]
[1760300552337,0.3314,4134.3,4134.2,3.2078]
[1760300554338,0.76202,4133.8,4133.7,3.2078]
[1760300557144,0.76208,4133.3,4133.2,0.00295416]
[1760300568239,0.1325,4133.5,4133.2,0.00295416]
[1760300568436,0.3326,4134.3,4133.9,0.43511]
[1760300568648,0.43747258,4134.4,4133.3,1.08794]
[1760300568649,0.00240258,4134.4,4134.2,3.2078]
[1760300568852,0.00240258,4134.4,4134.2,3.64288]
[1760300569049,0.00240258,4134.4,4134.2,8.43687404]
[1760300569247,0.76761,4134.9,4134.3,3.01858086]
[1760300569453,0.76761,4134.9,4134.8,3.2078]
[1760300569941,0.3326,4134.9,4134.8,3.2078]
[1760300570142,0.33473964,4134.9,4134.8,3.2078]
[1760300571160,0.00213964,4134.9,4134.8,3.2078]
[1760300572351,0.00213964,4134.9,4134.8,3.64282]
[1760300572546,0.00213964,4134.9,4134.8,8.00179404]
[1760300572850,0.33473964,4134.9,4134.8,3.2078]
[1760300573353,0.33393964,4134.9,4134.8,3.2078]
[1760300573547,0.00133964,4134.9,4134.8,3.2078]
[1760300575548,0.33393964,4134.9,4134.8,3.2078]
[1760300578557,0.43504,4134.6,4134.5,0.3051]
[1760300578855,0.43514,4133.7,4133.5,3.2078]
[1760300579057,0.3326,4133.6,4133.5,3.2078]
[1760300581646,0.3326,4133.9,4133.5,3.2078]
[1760300581850,0.43514,4133.7,4133.5,3.2078]
[1760300582059,0.3326,4133.6,4133.5,3.2078]
[1760300585055,0.3326,4133.6,4133.4,0.2439]
[1760300585056,0.56516,4133.5,4133.4,0.2439]
[1760300585265,0.88366,4133.5,4133.4,0.2439]
[1760300585765,0.75368,4133.3,4133.2,0.00295416]
[1760300586665,0.75372,4132.9,4132.8,0.4273]
[1760300587555,0.75372,4132.9,4132.8,0.42957376]
[1760300588155,0.75372,4132.9,4132.8,3.76e-06]
[1760300588360,3.47456154,4132.9,4132.8,3.76e-06]
[1760300590664,11.47148347,4132.9,4132.8,3.76e-06]
[1760300593769,11.92998347,4132.9,4132.8,3.76e-06]
[1760300594158,3.93306154,4132.9,4132.8,3.76e-06]
[1760300594371,0.75372,4132.9,4132.8,3.76e-06]
[1760300601376,1.21222,4132.9,4132.8,3.76e-06]
[1760300603575,0.75372,4132.9,4132.8,3.76e-06]
[1760300603779,3.44491273,4132.9,4132.8,3.76e-06]
[1760300605374,0.75372,4132.9,4132.8,3.76e-06]
[1760300606682,0.43519,4133.2,4132.8,0.43523376]
[1760300606880,0.1313,4134.0,4133.1,3.2078]
[1760300607077,0.43513,4133.8,4133.6,3.2078]
[1760300607379,1.08763,4134.6,4133.6,3.2078]
[1760300607580,4.29667964,4134.9,4133.7,0.43513]
[1760300607782,0.43507,4134.4,4133.8,0.43512]
[1760300608279,0.4351,4134.1,4133.6,3.2078]
[1760300608475,0.3185,4134.0,4133.6,3.2078]
[1760300608779,0.3185,4134.2,4133.6,3.2078]
[1760300609770,0.43511,4134.0,4133.6,3.2078]
[1760300609976,0.75361,4134.0,4133.6,3.2078]
[1760300610981,0.43512,4133.9,4133.6,3.2078]
[1760300611376,0.75362,4133.9,4133.6,3.2078]
[1760300612684,0.3185,4133.9,4133.6,3.2078]
[1760300613184,0.75362,4133.9,4133.6,3.2078]
[1760300614985,0.4351,4134.1,4133.6,3.64294]
[1760300615185,0.43511,4134.0,4133.6,3.64294]
[1760300615583,0.43511,4134.0,4133.6,3.2078]
[1760300615785,0.43512,4133.9,4133.6,3.2078]
[1760300615979,0.3291,4134.0,4133.6,3.64294]
[1760300616181,0.4351,4134.1,4133.7,0.43513]
[1760300616385,0.43511,4134.0,4133.6,3.2078]
[1760300616681,0.43512,4133.9,4133.6,3.2078]
[1760300617288,0.76423,4133.8,4133.6,3.2078]
[1760300617486,0.3291,4133.7,4133.6,3.2078]
[1760300617686,0.56411,4134.0,4133.6,3.64295]
[1760300617887,0.3291,4133.9,4133.6,3.64295]
[1760300618084,0.76422,4133.9,4133.6,3.64295]
[1760300618486,0.76422,4133.9,4133.6,3.2078]
[1760300619291,0.3291,4134.8,4133.6,3.2078]
[1760300619484,0.43503,4134.8,4134.3,0.43507]
[1760300619684,0.00133964,4134.9,4134.7,3.64283]
[1760300620192,0.129,4136.5,4134.7,3.64283]
[1760300620193,3.6659,4136.0,4135.0,0.435]
[1760300620381,3.6659,4136.0,4135.3,3.2078]
[1760300620588,0.43495,4135.5,4135.3,3.2078]
[1760300620788,0.43494,4135.6,4135.3,3.2078]
[1760300620990,0.43495,4135.5,4135.3,3.2078]
[1760300621291,0.76686961,4135.5,4135.3,3.2078]
[1760300621488,0.43776961,4135.5,4135.3,3.2078]
[1760300621788,0.3291,4135.4,4135.3,3.2078]
[1760300622186,0.56676961,4135.5,4135.3,3.2078]
[1760300622388,0.43776961,4135.5,4135.3,3.2078]
[1760300622692,0.76686961,4135.5,4135.3,3.2078]
[1760300623889,0.3132,4135.4,4135.3,3.2078]
[1760300626196,0.74816,4135.4,4135.3,3.2078]
[1760300628293,0.43481,4136.9,4135.7,0.43492]
[1760300628495,0.1257,4137.5,4136.4,3.2078]
[1760300628698,0.4389,4137.5,4137.4,3.2078]
[1760300629007,0.74801,4136.8,4136.7,3.2078]
[1760300629296,0.74801,4136.8,4135.8,3.2078]
[1760300629297,0.3132,4135.9,4135.8,3.2078]
[1760300629498,0.3132,4135.9,4135.8,3.21047673]
[1760300635302,0.7481,4135.9,4135.8,3.21047673]
[1760300636605,0.3132,4135.9,4135.8,3.21047673]
[1760300647807,0.7481,4135.9,4135.8,3.21047673]
[1760300654415,0.3132,4135.9,4135.8,3.64538673]
[1760300654609,0.1257,4136.0,4135.9,0.4349]
[1760300654919,0.1344,4136.0,4135.9,3.01831723]
[1760300655215,0.56929,4136.0,4135.8,6.22879396]
[1760300655415,0.1344,4136.0,4135.8,6.22879396]
[1760300655715,0.1344,4136.0,4135.9,3.01831723]
[1760300656617,0.4704,4136.0,4135.9,3.01831723]
[1760300656815,0.90529,4136.0,4135.8,3.21047673]
[1760300657121,0.336,4135.9,4135.8,3.21047673]
[1760300657321,0.336,4135.9,4135.8,6.66370396]
[1760300657516,0.28912982,4135.9,4135.8,6.66370396]
[1760300657718,0.28912982,4135.9,4135.8,3.64538673]
[1760300664234,0.28912982,4135.9,4135.8,7.94396864]
[1760300664723,0.1257,4136.5,4136.4,0.43485]
[1760300665020,0.1257,4136.5,4136.4,3.64265]
[1760300666616,0.4617,4136.5,4136.4,3.64265]
[1760300668624,0.89654,4136.5,4136.4,3.2078]
[1760300668933,0.89654,4136.5,4136.4,6.21661124]
[1760300669233,0.89654,4136.5,4136.4,3.2078]
[1760300671326,1.33174,4136.5,4136.4,3.2078]
[1760300681327,1.10924,4136.5,4136.4,3.2078]
[1760300681738,1.34944,4136.5,4136.4,3.2078]
[1760300683939,0.89654,4136.5,4136.4,3.2078]
[1760300684141,1.35514,4136.5,4136.4,3.2078]
[1760300685647,1.35514,4136.5,4134.8,4.78465663]
[1760300685648,1.08726,4135.9,4134.3,3.2078]
[1760300685937,0.435,4135.0,4134.8,3.6698]
[1760300686135,0.4586,4134.6,4134.5,0.3523]
[1760300686336,1.18994,4134.6,4134.5,0.3523]
[1760300686735,1.18994,4134.6,4134.5,0.35492821]
[1760300688239,0.89364,4134.6,4134.5,0.58822821]
[1760300688437,0.89364,4134.6,4134.5,0.71912821]
[1760300688839,0.43503,4134.7,4134.6,0.3523]
[1760300689039,0.43503,4134.7,4134.6,0.8143]
[1760300689643,0.65923,4134.7,4134.6,0.8143]
[1760300690038,0.89363,4134.7,4134.6,0.8143]
[1760300691742,0.89363,4134.7,4134.5,0.00262821]
[1760300691743,1.18993,4134.7,4134.5,0.00262821]
[1760300691947,0.7549,4134.6,4134.5,0.00262821]
[1760300692549,0.7549,4133.9,4133.3,3.2078]
[1760300692744,0.2242,4133.7,4133.6,1.53052797]
[1760300693051,0.2242,4133.7,4133.6,2.11152797]
[1760300693450,0.22694906,4133.7,4133.6,2.11369968]
[1760300696147,0.00274906,4133.7,4133.6,2.11369968]
[1760300696548,1.08751,4135.0,4133.6,0.81647171]
[1760300696750,0.43506,4134.4,4134.3,0.8143]
[1760300697049,0.43506,4134.4,4134.3,4.0221]
[1760300697257,4.10138,4135.1,4135.0,0.2333]
[1760300697552,4.10138,4135.1,4135.0,0.5856]
[1760300697754,4.39995311,4135.1,4135.0,0.5856]
[1760300698645,0.66145311,4135.1,4135.0,0.9452]
[1760300700253,0.89585311,4135.1,4135.0,0.4832]
[1760300700657,0.89585311,4135.1,4135.0,0.7165]
[1760300700960,1.1899,4135.0,4134.9,3.2078]
[1760300701652,1.1899,4135.0,4134.9,3.5601]
[1760300702348,1.18999,4134.1,4134.0,0.4832]
[1760300702552,1.18999,4134.1,4134.0,0.3523]
[1760300702758,0.89369,4134.1,4134.0,0.9586]
[1760300703457,0.43509,4134.1,4134.0,0.6063]
[1760300703957,0.43509,4134.1,4134.0,0.9664]
[1760300705059,0.90249,4134.1,4134.0,0.7486]
[1760300705461,0.90249,4134.1,4134.0,0.9664]
[1760300705760,1.25352,4133.8,4133.7,3.2078]
[1760300706257,1.25353,4133.7,4133.6,0.00217171]
[1760300707870,0.90253,4133.7,4133.6,0.36227171]
[1760300708056,0.90253,4133.7,4133.6,0.59787171]
[1760300709161,1.25353,4133.7,4133.6,0.59787171]
[1760300709654,0.43513,4133.7,4133.6,0.81567171]
[1760300710254,0.67203,4133.7,4133.6,0.81567171]
[1760300710862,0.67194,4134.6,4134.5,0.6063]
[1760300711055,0.90244,4134.6,4134.5,0.3601]
[1760300711457,1.08745,4135.2,4134.5,0.3601]
[1760300711458,0.67416311,4135.1,4135.0,0.9664]
[1760300711660,0.43726311,4135.1,4135.0,0.9664]
[1760300711856,0.00227311,4135.1,4135.0,0.7308]
[1760300712060,0.00227311,4135.1,4135.0,0.513]
[1760300712755,1.21282,4136.5,4135.0,0.513]
[1760300712756,0.43488,4136.2,4136.1,0.3601]
[1760300713755,0.43689287,4136.2,4136.1,0.3601]
[1760300713956,0.00201287,4136.2,4135.7,3.2078]
[1760300714156,0.3532,4136.1,4135.5,0.1529]
[1760300714662,0.3532,4136.1,4135.6,0.3601]
[1760300714854,0.43494,4135.6,4135.5,0.513]
[1760300715256,0.43491,4135.9,4135.6,0.3601]
[1760300715558,0.43491,4135.8,4135.7,3.2078]
[1760300715756,0.78811,4135.8,4135.7,3.2078]
[1760300716055,1.08732,4135.7,4135.2,3.2078]
[1760300716254,1.44052,4135.7,4135.2,3.2078]
[1760300716459,1.44052,4135.7,4135.3,0.3601]
[1760300716654,1.44052,4135.7,4135.2,3.2078]
[1760300716854,0.43496,4135.4,4135.3,0.3601]
[1760300717350,0.43502,4134.8,4134.6,3.2078]
[1760300717554,0.43502,4134.8,4134.7,0.3601]
[1760300717754,0.43502,4134.8,4134.6,3.2078]
[1760300717959,0.43504,4134.6,4134.5,0.1529]
[1760300718159,0.43504,4134.6,4134.5,0.513]
[1760300718765,0.43504,4134.6,4134.5,0.3601]
[1760300719666,0.43511,4133.9,4133.7,3.2078]
[1760300719962,0.43511,4133.9,4133.7,3.5679]
[1760300720165,0.78831,4133.9,4133.8,0.3601]
[1760300721167,0.398,4134.0,4133.6,0.00217171]
[1760300721464,0.78834,4133.7,4133.6,0.00217171]
[1760300721863,1.08774,4134.2,4134.1,0.3601]
[1760300721864,0.43508,4134.2,4134.1,0.3601]
[1760300722259,0.43508,4134.2,4133.6,3.57007171]
[1760300722260,0.43514,4133.7,4133.6,3.57007171]
[1760300722460,0.43506,4134.4,4134.2,0.3601]
[1760300722667,3.2078,4134.8,4134.1,0.43509]
[1760300722668,0.43508,4134.3,4134.1,0.3601]
[1760300723069,0.43509,4134.1,4134.0,0.513]
[1760300723565,3.2078,4134.8,4134.1,0.3601]
[1760300723767,0.43509,4134.1,4134.0,0.1529]
[1760300723971,0.43509,4134.1,4134.0,0.513]
[1760300724164,1.08759,4134.7,4134.5,0.1529]
[1760300724364,0.43503,4134.7,4134.6,0.3601]
[1760300728965,0.43503,4134.7,4134.2,3.5679]
[1760300728966,0.43507,4134.3,4134.2,3.5679]
[1760300730569,0.43507,4134.3,4134.2,0.3601]
[1760300730968,0.78832,4133.8,4133.7,3.2078]
[1760300731269,0.78832,4133.8,4133.6,0.36227171]
[1760300731466,0.43512,4133.8,4133.7,0.3601]
[1760300732268,1.08761,4134.6,4133.7,0.3601]
[1760300732469,0.43512,4133.9,4133.7,0.3601]
[1760300732660,0.43512,4133.9,4133.7,0.79523]
[1760300732862,0.43511,4134.0,4133.9,0.3472]
[1760300738781,0.43511,4134.0,4133.9,0.8181]
[1760300739164,3.561,4134.8,4133.9,0.8181]
[1760300739376,3.2078,4134.8,4134.6,0.8181]
[1760300739572,3.88592,4134.8,4134.7,0.58]
[1760300739773,3.88592,4134.8,4134.7,0.8181]
[1760300740172,4.13492,4134.8,4134.7,0.8181]
[1760300744577,4.13492,4134.8,4134.7,0.8112]
[1760300744775,0.43502,4134.8,4134.7,0.8112]
[1760300745187,0.43501,4135.0,4134.9,0.43501]
[1760300745384,0.43501,4135.0,4134.9,1.27401]
[1760300745587,0.43501,4135.0,4134.9,0.839]
[1760300746884,0.67271,4135.0,4134.9,0.839]
[1760300747693,0.43501,4135.0,4134.9,0.839]
[1760300748887,0.43501,4135.0,4134.6,4.0468]
[1760300748888,0.90073,4134.7,4134.6,4.0468]
[1760300749585,0.43503,4134.7,4134.6,4.0468]
[1760300752089,0.43503,4134.7,4134.6,0.839]
[1760300752400,0.43503,4134.7,4134.6,4.0468]
[1760300753087,0.43496,4135.4,4135.3,0.4813]
[1760300753287,0.43496,4135.4,4135.3,0.839]
[1760300753892,0.67266,4135.4,4135.3,0.839]
[1760300758000,0.43496,4135.4,4135.3,0.839]
[1760300760202,0.90066,4135.4,4135.3,0.839]
[1760300761702,0.43496,4135.4,4135.3,0.839]
[1760300762292,3.20981287,4136.2,4136.1,0.2501]
[1760300762593,0.43688287,4136.2,4136.1,0.839]
[1760300764001,0.1432,4135.5,4135.2,3.00305042]
[1760300764200,1.05149,4135.1,4135.0,3.48765042]
[1760300764597,1.05149,4135.1,4135.0,0.4846]
[1760300765404,0.43499,4135.1,4135.0,0.4846]
[1760300766203,0.43499,4135.1,4135.0,0.8522]
[1760300767800,0.43499,4135.1,4135.0,2.50499869]
[1760300769710,0.43499,4135.1,4135.0,0.8991]
[1760300770608,1.29739,4135.1,4135.0,0.8522]
[1760300771007,1.29739,4135.1,4135.0,0.4846]
[1760300771710,1.29739,4135.1,4135.0,0.8522]
[1760300772008,2.17457,4135.9,4135.2,0.3676]
[1760300772009,0.43498,4135.3,4135.2,0.3676]
[1760300772209,0.43498,4135.3,4135.2,0.8522]
[1760300772615,0.3667,4136.1,4135.2,0.4846]
[1760300772905,0.43488,4136.1,4136.0,0.994]
[1760300774212,0.43488,4136.1,4136.0,0.8522]
[1760300774410,1.05138,4136.1,4136.0,0.8522]
[1760300774913,0.43494,4135.6,4135.5,4.06]
[1760300775912,1.29734,4135.6,4135.5,3.4447]
[1760300778114,1.29734,4135.6,4135.5,3.6924]
[1760300779512,1.29734,4135.6,4135.5,0.4846]
[1760300781618,1.29734,4135.6,4135.5,0.8522]
[1760300783120,1.05144,4135.6,4135.5,0.8522]
[1760300783422,0.43494,4135.6,4135.5,4.2018]
[1760300789215,1.05144,4135.6,4135.5,4.06]
[1760300789516,0.43494,4135.6,4135.5,4.2018]
[1760300790421,3.20981287,4136.2,4135.6,0.80494]
[1760300790720,0.43688287,4136.2,4136.1,0.8434]
[1760300790916,0.00201287,4136.2,4136.1,0.8434]
[1760300791614,0.00201287,4136.2,4136.1,2.2300152]
[1760300791815,0.43688287,4136.2,4136.1,2.2300152]
[1760300796128,0.43688287,4136.2,4136.1,0.8434]
[1760300797423,1.27508287,4136.2,4136.1,0.8434]
[1760300797623,1.27508287,4136.2,4136.0,3.2078]
[1760300797624,1.2731,4135.9,4135.8,3.00305042]
[1760300797819,0.80324,4135.6,4135.5,3.2078]
[1760300801530,0.43498,4135.2,4135.1,3.00305042]
[1760300801723,0.43498,4135.2,4135.0,3.2078]
[1760300801724,0.43499,4135.1,4135.0,3.2078]
[1760300801929,0.80329,4135.1,4135.0,3.2078]
[1760300802428,1.03189,4135.1,4135.0,3.2078]
[1760300802823,0.43501,4134.9,4134.8,3.00305042]
[1760300803827,1.03191,4134.9,4134.8,3.00305042]
[1760300804024,1.27321,4134.9,4134.8,3.00305042]
[1760300804326,0.90494,4134.6,4134.5,3.2078]
[1760300804529,0.90494,4134.6,4134.1,7.30163233]
[1760300804530,1.27328,4134.2,4134.1,3.00305042]
[1760300804824,0.8382,4133.9,4133.8,3.00305042]
[1760300805030,0.2286,4133.7,4133.6,0.00217171]
[1760300805218,0.8382,4133.7,4133.6,0.00217171]
[1760300805418,0.4699,4133.1,4133.0,3.2078]
[1760300805627,0.43525,4132.6,4132.5,3.2078]
[1760300805830,0.80355,4132.6,4132.5,3.2078]
[1760300806031,0.139,4133.0,4132.5,3.2078]
[1760300806226,0.139,4133.5,4132.5,3.2078]
[1760300806422,0.2286,4133.3,4133.1,3.2078]
[1760300806623,1.03209,4133.2,4133.1,3.2078]
[1760300806925,1.27339,4133.2,4133.1,3.2078]
[1760300808030,1.02594,4132.7,4132.6,3.2078]
[1760300808931,0.79344,4132.7,4132.6,3.2078]
[1760300812634,0.43524,4132.7,4132.6,3.2078]
[1760300813233,1.22967125,4133.5,4132.6,3.2078]
[1760300813234,0.49997125,4133.5,4132.6,3.2078]
[1760300813531,0.43517,4133.4,4133.2,3.2078]
[1760300813829,0.49997125,4133.5,4133.2,3.2078]
[1760300814031,0.00277125,4133.5,4133.2,3.64299]
[1760300814432,0.00277125,4133.5,4133.3,0.43517]
[1760300814931,0.00277125,4133.5,4133.2,3.2078]
[1760300814932,0.43793125,4133.5,4133.2,3.2078]
[1760300815335,0.00277125,4133.5,4133.2,3.2078]
[1760300815935,0.00277125,4133.5,4133.3,0.43518]
[1760300816637,0.79337,4133.4,4133.2,3.2078]
[1760300816834,0.43517,4133.4,4133.2,3.2078]
[1760300817132,0.00277125,4133.5,4133.2,3.64299]
[1760300817334,0.00277125,4133.5,4133.3,0.43518]
[1760300818334,0.43793125,4133.5,4133.2,3.2078]
[1760300818533,0.00277125,4133.5,4133.2,3.64299]